[Event "Titled Tuesday Blitz June 6 Early 2023"]
[White "ArchibaldCerveza29"]
[Black "Krutko, Anatoly"]
[BlackFideId "4185862"]
[WhiteElo "2436"]
[BlackElo "2378"]
[Result "1-0"]
[Round "7"]
[TimeControl "180+2"]
[Date "2023.06.06"]
[WhiteClock "0:00:05"]
[BlackClock "0:00:16"]
[Board "89"]

1. e4 {[%clk 0:02:55]}  g6 {[%clk 0:02:56]} 2. d4 {[%clk 0:02:55]}  Bg7 {[%clk 0:02:56]} 3. Nc3 {[%clk 0:02:56]}  d6 {[%clk 0:02:56]} 4. f4 {[%clk 0:02:56]}  a6 {[%clk 0:02:51]} 5. a4 {[%clk 0:02:55]}  Nc6 {[%clk 0:02:50]} 6. Nf3 {[%clk 0:02:55]}  Bg4 {[%clk 0:02:51]} 7. Be3 {[%clk 0:02:55]}  Bxf3 {[%clk 0:02:50]} 8. gxf3 {[%clk 0:02:55]}  e5 {[%clk 0:02:51]} 9. fxe5 {[%clk 0:02:51]}  dxe5 {[%clk 0:02:44]} 10. d5 {[%clk 0:02:52]}  Nd4 {[%clk 0:02:44]} 11. Be2 {[%clk 0:02:41]}  Ne7 {[%clk 0:02:30]} 12. Qd2 {[%clk 0:02:25]}  f5 {[%clk 0:02:16]} 13. h4 {[%clk 0:01:35]}  fxe4 {[%clk 0:02:09]} 14. fxe4 {[%clk 0:01:36]}  Qd6 {[%clk 0:02:03]} 15. h5 {[%clk 0:01:31]}  O-O-O {[%clk 0:02:03]} 16. O-O-O {[%clk 0:01:29]}  gxh5 {[%clk 0:01:50]} 17. Rxh5 {[%clk 0:01:25]}  Ng6 {[%clk 0:01:47]} 18. Rdh1 {[%clk 0:01:19]}  h6 {[%clk 0:01:27]} 19. Bxh6 {[%clk 0:01:06]}  Bxh6 {[%clk 0:01:28]} 20. Rxh6 {[%clk 0:01:06]}  Rxh6 {[%clk 0:01:21]} 21. Rxh6 {[%clk 0:01:03]}  Rh8 {[%clk 0:01:20]} 22. Bg4+ {[%clk 0:01:00]}  Kb8 {[%clk 0:01:18]} 23. Bf5 {[%clk 0:00:43]}  Rxh6 {[%clk 0:01:05]} 24. Qxh6 {[%clk 0:00:44]}  Nf4 {[%clk 0:01:04]} 25. Qxd6 {[%clk 0:00:42]}  cxd6 {[%clk 0:01:05]} 26. Bg4 {[%clk 0:00:42]}  Kc7 {[%clk 0:01:01]} 27. Kd2 {[%clk 0:00:43]}  Kb6 {[%clk 0:00:56]} 28. Ne2 {[%clk 0:00:39]}  Ndxe2 {[%clk 0:00:54]} 29. Bxe2 {[%clk 0:00:40]}  Kc5 {[%clk 0:00:54]} 30. Bf3 {[%clk 0:00:28]}  a5 {[%clk 0:00:53]} 31. c3 {[%clk 0:00:27]}  b6 {[%clk 0:00:51]} 32. b3 {[%clk 0:00:26]}  Ng6 {[%clk 0:00:51]} 33. Ke3 {[%clk 0:00:24]}  Nf4 {[%clk 0:00:51]} 34. Bg4 {[%clk 0:00:24]}  Ng6 {[%clk 0:00:50]} 35. Bd7 {[%clk 0:00:24]}  Nf4 {[%clk 0:00:51]} 36. Bb5 {[%clk 0:00:21]}  Ng2+ {[%clk 0:00:48]} 37. Kf3 {[%clk 0:00:21]}  Nf4 {[%clk 0:00:39]} 38. Kg4 {[%clk 0:00:18]}  Ng2 {[%clk 0:00:34]} 39. Kg5 {[%clk 0:00:16]}  Ne3 {[%clk 0:00:34]} 40. Kf6 {[%clk 0:00:12]}  Nd1 {[%clk 0:00:34]} 41. b4+ {[%clk 0:00:10]}  axb4 {[%clk 0:00:35]} 42. cxb4+ {[%clk 0:00:10]}  Kxb4 {[%clk 0:00:35]} 43. Ke6 {[%clk 0:00:10]}  Kc5 {[%clk 0:00:36]} 44. Bd3 {[%clk 0:00:06]}  Nc3 {[%clk 0:00:33]} 45. Bc2 {[%clk 0:00:06]}  Ne2 {[%clk 0:00:32]} 46. Kd7 {[%clk 0:00:06]}  Nc3 {[%clk 0:00:20]} 47. Ke6 {[%clk 0:00:05]}  b5 {[%clk 0:00:20]} 48. a5 {[%clk 0:00:03]}  b4 {[%clk 0:00:19]} 49. a6 {[%clk 0:00:03]}  Nb5 {[%clk 0:00:20]} 50. Bd3 {[%clk 0:00:02]}  Nc7+ {[%clk 0:00:16]} 51. Kd7 {[%clk 0:00:02]}  Na8 {[%clk 0:00:16]} 52. Kc8 {[%clk 0:00:02]}  b3 {[%clk 0:00:14]} 53. Kb7 {[%clk 0:00:02]}  Nb6 {[%clk 0:00:14]} 54. a7 {[%clk 0:00:02]}  b2 {[%clk 0:00:14]} 55. a8=Q {[%clk 0:00:01]}  Nxa8 {[%clk 0:00:14]} 56. Kxa8 {[%clk 0:00:02]}  Kd4 {[%clk 0:00:15]} 57. Bb1 {[%clk 0:00:02]}  Kc3 {[%clk 0:00:16]} 58. Kb7 {[%clk 0:00:03]}  Kd2 {[%clk 0:00:16]} 59. Kc6 {[%clk 0:00:04]}  Kc1 {[%clk 0:00:17]} 60. Bd3 {[%clk 0:00:04]}  Kd2 {[%clk 0:00:17]} 61. Bb1 {[%clk 0:00:04]}  Kc1 {[%clk 0:00:18]} 62. Ba2 {[%clk 0:00:05]}  Kd2 {[%clk 0:00:15]} 63. Kxd6 {[%clk 0:00:05]}  Kd3 {[%clk 0:00:16]} 64. Kxe5 {[%clk 0:00:05]} 1-0


[Site "https://www.chess.com"]

[Event "Titled Tuesday Blitz June 6 Early 2023"]
[White "Garcia Blanco, Omar"]
[Black "Matveeva, Olga"]
[WhiteFideId "2287153"]
[BlackFideId "24107018"]
[WhiteElo "2356"]
[BlackElo "2009"]
[Result "1-0"]
[Round "7"]
[TimeControl "180+2"]
[Date "2023.06.06"]
[WhiteClock "0:00:41"]
[BlackClock "0:00:01"]
[Board "91"]

1. e4 {[%clk 0:03:00]}  e6 {[%clk 0:02:59]} 2. d4 {[%clk 0:03:00]}  d5 {[%clk 0:03:00]} 3. e5 {[%clk 0:03:00]}  c5 {[%clk 0:03:00]} 4. c3 {[%clk 0:03:01]}  Nc6 {[%clk 0:03:00]} 5. Nf3 {[%clk 0:03:01]}  Qb6 {[%clk 0:03:01]} 6. Bd3 {[%clk 0:03:02]}  cxd4 {[%clk 0:02:57]} 7. O-O {[%clk 0:03:02]}  Bd7 {[%clk 0:02:58]} 8. Re1 {[%clk 0:03:02]}  Nge7 {[%clk 0:02:55]} 9. h4 {[%clk 0:03:02]}  h5 {[%clk 0:02:39]} 10. a3 {[%clk 0:03:00]}  Nf5 {[%clk 0:02:24]} 11. b4 {[%clk 0:02:59]}  Be7 {[%clk 0:02:20]} 12. Bxf5 {[%clk 0:02:49]}  exf5 {[%clk 0:02:19]} 13. cxd4 {[%clk 0:02:49]}  Be6 {[%clk 0:02:11]} 14. Nc3 {[%clk 0:02:49]}  Rc8 {[%clk 0:02:08]} 15. Na4 {[%clk 0:02:29]}  Qd8 {[%clk 0:01:55]} 16. Bg5 {[%clk 0:02:26]}  O-O {[%clk 0:01:39]} 17. Rc1 {[%clk 0:02:23]}  b6 {[%clk 0:01:26]} 18. Nc3 {[%clk 0:02:21]}  Qd7 {[%clk 0:01:24]} 19. Ne2 {[%clk 0:02:14]}  g6 {[%clk 0:00:54]} 20. Nf4 {[%clk 0:02:13]}  Rfe8 {[%clk 0:00:46]} 21. Qd3 {[%clk 0:02:08]}  Bf8 {[%clk 0:00:42]} 22. Bf6 {[%clk 0:02:00]}  Bg7 {[%clk 0:00:39]} 23. Ng5 {[%clk 0:01:55]}  Ne7 {[%clk 0:00:15]} 24. Bxe7 {[%clk 0:01:38]}  Qxe7 {[%clk 0:00:14]} 25. Ngxe6 {[%clk 0:01:38]}  fxe6 {[%clk 0:00:13]} 26. Nxg6 {[%clk 0:01:38]}  Qf7 {[%clk 0:00:12]} 27. Nf4 {[%clk 0:01:27]}  Bh6 {[%clk 0:00:11]} 28. Qf3 {[%clk 0:01:18]}  Bxf4 {[%clk 0:00:09]} 29. Qxf4 {[%clk 0:01:19]}  Kh7 {[%clk 0:00:08]} 30. Rxc8 {[%clk 0:01:02]}  Rxc8 {[%clk 0:00:07]} 31. Rc1 {[%clk 0:01:02]}  Rxc1+ {[%clk 0:00:06]} 32. Qxc1 {[%clk 0:01:03]}  Qg7 {[%clk 0:00:06]} 33. Qf4 {[%clk 0:00:55]}  Qc7 {[%clk 0:00:03]} 34. Qg5 {[%clk 0:00:54]}  Qf7 {[%clk 0:00:03]} 35. f3 {[%clk 0:00:53]}  Qe8 {[%clk 0:00:03]} 36. Kf2 {[%clk 0:00:51]}  Qf7 {[%clk 0:00:03]} 37. Ke3 {[%clk 0:00:48]}  a6 {[%clk 0:00:03]} 38. Kf4 {[%clk 0:00:48]}  Qe8 {[%clk 0:00:03]} 39. Qf6 {[%clk 0:00:46]}  Qd7 {[%clk 0:00:02]} 40. Kg5 {[%clk 0:00:43]}  a5 {[%clk 0:00:02]} 41. Qg6+ {[%clk 0:00:41]}  Kh8 {[%clk 0:00:01]} 42. Qxh5+ {[%clk 0:00:41]} 1-0


[Site "https://www.chess.com"]

[Event "Titled Tuesday Blitz June 6 Early 2023"]
[White "Marcziter, Dmitrii"]
[Black "Hajiyev, Kanan"]
[WhiteFideId "13900765"]
[BlackFideId "13404148"]
[WhiteElo "2162"]
[BlackElo "2115"]
[Result "1/2-1/2"]
[Round "7"]
[TimeControl "180+2"]
[Date "2023.06.06"]
[WhiteClock "0:00:09"]
[BlackClock "0:00:13"]
[Board "94"]

1. d4 {[%clk 0:03:00]}  Nf6 {[%clk 0:02:54]} 2. c4 {[%clk 0:03:00]}  e6 {[%clk 0:02:54]} 3. Nf3 {[%clk 0:03:00]}  c5 {[%clk 0:02:48]} 4. d5 {[%clk 0:02:59]}  b5 {[%clk 0:02:45]} 5. a4 {[%clk 0:02:58]}  bxc4 {[%clk 0:02:44]} 6. Nc3 {[%clk 0:02:58]}  Qa5 {[%clk 0:02:42]} 7. Bd2 {[%clk 0:02:55]}  Bb7 {[%clk 0:02:41]} 8. e4 {[%clk 0:02:53]}  Ba6 {[%clk 0:02:20]} 9. Nb5 {[%clk 0:02:33]}  Qb6 {[%clk 0:02:10]} 10. Qc2 {[%clk 0:01:56]}  Bxb5 {[%clk 0:02:01]} 11. axb5 {[%clk 0:01:54]}  exd5 {[%clk 0:02:02]} 12. exd5 {[%clk 0:01:51]}  Bd6 {[%clk 0:01:45]} 13. Bxc4 {[%clk 0:01:46]}  O-O {[%clk 0:01:46]} 14. O-O {[%clk 0:01:45]}  Re8 {[%clk 0:01:42]} 15. Rfe1 {[%clk 0:01:13]}  Rxe1+ {[%clk 0:01:41]} 16. Rxe1 {[%clk 0:01:12]}  a6 {[%clk 0:01:41]} 17. Bc3 {[%clk 0:01:08]}  axb5 {[%clk 0:01:17]} 18. Bxf6 {[%clk 0:01:07]}  bxc4 {[%clk 0:00:44]} 19. Ng5 {[%clk 0:00:36]}  g6 {[%clk 0:00:37]} 20. g3 {[%clk 0:00:24]}  Na6 {[%clk 0:00:31]} 21. Qe4 {[%clk 0:00:19]}  Nc7 {[%clk 0:00:26]} 22. Qh4 {[%clk 0:00:18]}  h5 {[%clk 0:00:23]} 23. Ne4 {[%clk 0:00:18]}  Nxd5 {[%clk 0:00:17]} 24. Qg5 {[%clk 0:00:16]}  Nxf6 {[%clk 0:00:11]} 25. Nxf6+ {[%clk 0:00:15]}  Kg7 {[%clk 0:00:09]} 26. Nxh5+ {[%clk 0:00:15]}  Kh7 {[%clk 0:00:09]} 27. Nf6+ {[%clk 0:00:14]}  Kg7 {[%clk 0:00:09]} 28. Nxd7 {[%clk 0:00:13]}  Qd8 {[%clk 0:00:08]} 29. Qd5 {[%clk 0:00:08]}  Rc8 {[%clk 0:00:03]} 30. Ne5 {[%clk 0:00:03]}  Bxe5 {[%clk 0:00:04]} 31. Qxe5+ {[%clk 0:00:03]}  Qf6 {[%clk 0:00:04]} 32. Qxf6+ {[%clk 0:00:03]}  Kxf6 {[%clk 0:00:05]} 33. Re4 {[%clk 0:00:03]}  Rb8 {[%clk 0:00:06]} 34. Rxc4 {[%clk 0:00:03]}  Rxb2 {[%clk 0:00:07]} 35. Rxc5 {[%clk 0:00:04]}  Rb1+ {[%clk 0:00:07]} 36. Kg2 {[%clk 0:00:04]}  Rb2 {[%clk 0:00:08]} 37. h4 {[%clk 0:00:04]}  Kg7 {[%clk 0:00:08]} 38. Rc4 {[%clk 0:00:05]}  Rb6 {[%clk 0:00:08]} 39. Rf4 {[%clk 0:00:06]}  Rb7 {[%clk 0:00:09]} 40. Rf3 {[%clk 0:00:06]}  Re7 {[%clk 0:00:09]} 41. Rf4 {[%clk 0:00:07]}  Re6 {[%clk 0:00:10]} 42. Rf3 {[%clk 0:00:08]}  Rd6 {[%clk 0:00:10]} 43. Rf4 {[%clk 0:00:08]}  Rc6 {[%clk 0:00:11]} 44. Rf3 {[%clk 0:00:09]}  Rd6 {[%clk 0:00:11]} 45. Rf4 {[%clk 0:00:09]}  Re6 {[%clk 0:00:12]} 46. Rd4 {[%clk 0:00:09]}  Rf6 {[%clk 0:00:12]} 47. Rf4 {[%clk 0:00:09]}  Re6 {[%clk 0:00:13]} 1/2-1/2


[Site "https://www.chess.com"]

[Event "Titled Tuesday Blitz June 6 Early 2023"]
[White "Gatterer, Florian"]
[Black "Ronka, Erik"]
[WhiteFideId "811688"]
[BlackFideId "505080"]
[WhiteElo "2221"]
[BlackElo "2264"]
[Result "1/2-1/2"]
[Round "7"]
[TimeControl "180+2"]
[Date "2023.06.06"]
[WhiteClock "0:01:47"]
[BlackClock "0:01:10"]
[Board "96"]

1. c4 {[%clk 0:02:58]}  c6 {[%clk 0:03:00]} 2. Nf3 {[%clk 0:02:52]}  d5 {[%clk 0:03:00]} 3. g3 {[%clk 0:02:53]}  Nf6 {[%clk 0:03:00]} 4. Bg2 {[%clk 0:02:53]}  Bg4 {[%clk 0:03:01]} 5. Ne5 {[%clk 0:02:51]}  Be6 {[%clk 0:03:00]} 6. cxd5 {[%clk 0:02:50]}  Bxd5 {[%clk 0:03:01]} 7. Nf3 {[%clk 0:02:50]}  c5 {[%clk 0:03:02]} 8. Nc3 {[%clk 0:02:50]}  Bc6 {[%clk 0:03:02]} 9. d3 {[%clk 0:02:50]}  e6 {[%clk 0:03:02]} 10. O-O {[%clk 0:02:50]}  Be7 {[%clk 0:03:02]} 11. e4 {[%clk 0:02:50]}  O-O {[%clk 0:03:03]} 12. Qe2 {[%clk 0:02:50]}  b5 {[%clk 0:02:53]} 13. Ne5 {[%clk 0:02:48]}  b4 {[%clk 0:02:52]} 14. Nd1 {[%clk 0:02:39]}  Bb7 {[%clk 0:02:39]} 15. Ne3 {[%clk 0:02:38]}  Nc6 {[%clk 0:02:34]} 16. Nxc6 {[%clk 0:02:37]}  Bxc6 {[%clk 0:02:35]} 17. Nc4 {[%clk 0:02:35]}  Nd7 {[%clk 0:02:27]} 18. Be3 {[%clk 0:02:29]}  e5 {[%clk 0:02:21]} 19. f4 {[%clk 0:02:26]}  exf4 {[%clk 0:02:15]} 20. gxf4 {[%clk 0:02:24]}  Nb6 {[%clk 0:02:08]} 21. Ne5 {[%clk 0:02:20]}  Bb5 {[%clk 0:02:08]} 22. Rfd1 {[%clk 0:02:14]}  Rc8 {[%clk 0:02:06]} 23. Rac1 {[%clk 0:02:04]}  f6 {[%clk 0:01:49]} 24. Nc4 {[%clk 0:02:04]}  Qe8 {[%clk 0:01:34]} 25. b3 {[%clk 0:01:53]}  Nxc4 {[%clk 0:01:31]} 26. bxc4 {[%clk 0:01:53]}  Bc6 {[%clk 0:01:32]} 27. a3 {[%clk 0:01:53]}  a5 {[%clk 0:01:31]} 28. Kh1 {[%clk 0:01:52]}  Qd7 {[%clk 0:01:18]} 29. axb4 {[%clk 0:01:51]}  axb4 {[%clk 0:01:14]} 30. Qf2 {[%clk 0:01:49]}  Rfd8 {[%clk 0:01:11]} 31. Qg3 {[%clk 0:01:48]}  Bf8 {[%clk 0:01:10]} 32. Bh3 {[%clk 0:01:47]} 1/2-1/2


[Site "https://www.chess.com"]

[Event "Titled Tuesday Blitz June 6 Early 2023"]
[White "Trifan, Andrei Ioan"]
[Black "Zenin, Dmitry"]
[WhiteFideId "12967068"]
[BlackFideId "4127897"]
[WhiteElo "2208"]
[BlackElo "2215"]
[Result "1-0"]
[Round "7"]
[TimeControl "180+2"]
[Date "2023.06.06"]
[WhiteClock "0:00:25"]
[BlackClock "0:00:07"]
[Board "98"]

1. e4 {[%clk 0:03:00]}  e5 {[%clk 0:02:59]} 2. Nc3 {[%clk 0:02:58]}  Nf6 {[%clk 0:02:58]} 3. Bc4 {[%clk 0:02:57]}  Nxe4 {[%clk 0:02:57]} 4. Qh5 {[%clk 0:02:57]}  Nd6 {[%clk 0:02:56]} 5. Bb3 {[%clk 0:02:57]}  Be7 {[%clk 0:02:52]} 6. Nf3 {[%clk 0:02:47]}  Nc6 {[%clk 0:02:50]} 7. d3 {[%clk 0:02:35]}  g6 {[%clk 0:02:28]} 8. Qh6 {[%clk 0:02:34]}  Nf5 {[%clk 0:02:26]} 9. Qh3 {[%clk 0:02:29]}  d6 {[%clk 0:02:16]} 10. g4 {[%clk 0:02:06]}  Nfd4 {[%clk 0:02:13]} 11. Bh6 {[%clk 0:02:02]}  Nxf3+ {[%clk 0:00:51]} 12. Qxf3 {[%clk 0:02:03]}  Be6 {[%clk 0:00:50]} 13. Ba4 {[%clk 0:01:38]}  Qd7 {[%clk 0:00:34]} 14. Qe3 {[%clk 0:01:20]}  a6 {[%clk 0:00:29]} 15. O-O-O {[%clk 0:01:10]}  b5 {[%clk 0:00:28]} 16. Bb3 {[%clk 0:01:09]}  Nd4 {[%clk 0:00:26]} 17. f4 {[%clk 0:01:05]}  Bxg4 {[%clk 0:00:19]} 18. fxe5 {[%clk 0:00:55]}  Nf5 {[%clk 0:00:19]} 19. Qf4 {[%clk 0:00:49]}  Nxh6 {[%clk 0:00:19]} 20. Qxh6 {[%clk 0:00:41]}  Be6 {[%clk 0:00:16]} 21. exd6 {[%clk 0:00:37]}  cxd6 {[%clk 0:00:13]} 22. Rhe1 {[%clk 0:00:32]}  O-O-O {[%clk 0:00:13]} 23. Nd5 {[%clk 0:00:30]}  Kb7 {[%clk 0:00:11]} 24. Qe3 {[%clk 0:00:28]}  Bxd5 {[%clk 0:00:08]} 25. Bxd5+ {[%clk 0:00:29]}  Kb8 {[%clk 0:00:07]} 26. Qxe7 {[%clk 0:00:25]} 1-0


[Site "https://www.chess.com"]

[Event "Titled Tuesday Blitz June 6 Early 2023"]
[White "Da Silva, Lindolfo Luiz"]
[Black "Bilan, Danila"]
[WhiteFideId "2106558"]
[BlackFideId "24161918"]
[WhiteElo "2374"]
[BlackElo "2146"]
[Result "0-1"]
[Round "7"]
[TimeControl "180+2"]
[Date "2023.06.06"]
[WhiteClock "0:00:02"]
[BlackClock "0:00:07"]
[Board "100"]

1. d4 {[%clk 0:02:58]}  d5 {[%clk 0:02:56]} 2. g3 {[%clk 0:02:55]}  Nf6 {[%clk 0:02:56]} 3. Bg2 {[%clk 0:02:42]}  c5 {[%clk 0:02:54]} 4. Nf3 {[%clk 0:02:35]}  Nc6 {[%clk 0:02:54]} 5. O-O {[%clk 0:02:28]}  Bg4 {[%clk 0:02:54]} 6. c4 {[%clk 0:02:25]}  e6 {[%clk 0:02:46]} 7. cxd5 {[%clk 0:02:13]}  Nxd5 {[%clk 0:02:46]} 8. Ne5 {[%clk 0:02:02]}  Bh5 {[%clk 0:02:10]} 9. Nxc6 {[%clk 0:01:51]}  bxc6 {[%clk 0:02:10]} 10. Qa4 {[%clk 0:01:51]}  Qb6 {[%clk 0:02:04]} 11. e4 {[%clk 0:01:30]}  Nb4 {[%clk 0:01:33]} 12. d5 {[%clk 0:00:44]}  Be2 {[%clk 0:01:16]} 13. Re1 {[%clk 0:00:44]}  Bb5 {[%clk 0:00:55]} 14. Qd1 {[%clk 0:00:43]}  Nd3 {[%clk 0:00:47]} 15. Re3 {[%clk 0:00:42]}  c4 {[%clk 0:00:40]} 16. Nc3 {[%clk 0:00:40]}  Bc5 {[%clk 0:00:38]} 17. dxe6 {[%clk 0:00:32]}  O-O {[%clk 0:00:22]} 18. Bh3 {[%clk 0:00:26]}  fxe6 {[%clk 0:00:18]} 19. Bxe6+ {[%clk 0:00:26]}  Kh8 {[%clk 0:00:18]} 20. Bf5 {[%clk 0:00:18]}  g6 {[%clk 0:00:15]} 21. Bxg6 {[%clk 0:00:12]}  hxg6 {[%clk 0:00:14]} 22. Qg4 {[%clk 0:00:13]}  Kg7 {[%clk 0:00:11]} 23. h4 {[%clk 0:00:10]}  Nxf2 {[%clk 0:00:11]} 24. Qd7+ {[%clk 0:00:07]}  Rf7 {[%clk 0:00:11]} 25. Qd2 {[%clk 0:00:06]}  Ng4 {[%clk 0:00:10]} 26. Nd1 {[%clk 0:00:05]}  Rd8 {[%clk 0:00:09]} 27. Qe1 {[%clk 0:00:04]}  Rxd1 {[%clk 0:00:07]} 28. Qxd1 {[%clk 0:00:04]}  Bxe3+ {[%clk 0:00:06]} 29. Kg2 {[%clk 0:00:02]}  Bxc1 {[%clk 0:00:07]} 0-1


[Site "https://www.chess.com"]

[Event "Titled Tuesday Blitz June 6 Early 2023"]
[White "Georg, Heinz"]
[Black "Chernomordik, Pavel"]
[WhiteFideId "4607295"]
[BlackFideId "2804530"]
[WhiteElo "2332"]
[BlackElo "2193"]
[Result "0-1"]
[Round "7"]
[TimeControl "180+2"]
[Date "2023.06.06"]
[WhiteClock "0:00:32"]
[BlackClock "0:00:16"]
[Board "103"]

1. e4 {[%clk 0:03:00]}  g6 {[%clk 0:02:59]} 2. d4 {[%clk 0:03:00]}  Bg7 {[%clk 0:02:58]} 3. Nc3 {[%clk 0:03:00]}  d6 {[%clk 0:02:57]} 4. f4 {[%clk 0:03:00]}  a6 {[%clk 0:02:57]} 5. a4 {[%clk 0:02:59]}  b6 {[%clk 0:02:56]} 6. Nf3 {[%clk 0:02:59]}  e6 {[%clk 0:02:55]} 7. Bd3 {[%clk 0:02:59]}  Ne7 {[%clk 0:02:54]} 8. O-O {[%clk 0:02:59]}  c5 {[%clk 0:02:54]} 9. Be3 {[%clk 0:02:57]}  Nbc6 {[%clk 0:02:51]} 10. dxc5 {[%clk 0:02:56]}  bxc5 {[%clk 0:02:47]} 11. e5 {[%clk 0:02:56]}  Nd5 {[%clk 0:02:38]} 12. Qe2 {[%clk 0:02:15]}  Nxe3 {[%clk 0:02:15]} 13. Qxe3 {[%clk 0:02:15]}  O-O {[%clk 0:02:14]} 14. Rad1 {[%clk 0:02:08]}  Bb7 {[%clk 0:01:51]} 15. exd6 {[%clk 0:02:02]}  Nd4 {[%clk 0:01:50]} 16. Be4 {[%clk 0:02:01]}  Rb8 {[%clk 0:01:36]} 17. Ne5 {[%clk 0:01:38]}  Qxd6 {[%clk 0:01:31]} 18. Bxb7 {[%clk 0:01:36]}  Rxb7 {[%clk 0:01:31]} 19. Ne4 {[%clk 0:01:37]}  Qb6 {[%clk 0:01:23]} 20. c3 {[%clk 0:01:33]}  Nf5 {[%clk 0:01:21]} 21. Qxc5 {[%clk 0:01:29]}  Ne3 {[%clk 0:01:14]} 22. Qxb6 {[%clk 0:01:26]}  Rxb6 {[%clk 0:01:13]} 23. Nd7 {[%clk 0:01:26]}  Rxb2 {[%clk 0:01:07]} 24. Nxf8 {[%clk 0:01:24]}  Nxd1 {[%clk 0:01:01]} 25. Rxd1 {[%clk 0:01:08]}  Kxf8 {[%clk 0:01:01]} 26. Rd7 {[%clk 0:01:02]}  Re2 {[%clk 0:00:57]} 27. Nd6 {[%clk 0:01:00]}  Bxc3 {[%clk 0:00:56]} 28. Rxf7+ {[%clk 0:01:00]}  Kg8 {[%clk 0:00:56]} 29. Kf1 {[%clk 0:00:54]}  Rd2 {[%clk 0:00:52]} 30. Rd7 {[%clk 0:00:54]}  Bb4 {[%clk 0:00:46]} 31. Rd8+ {[%clk 0:00:54]}  Kg7 {[%clk 0:00:46]} 32. Ne8+ {[%clk 0:00:52]}  Kf7 {[%clk 0:00:41]} 33. Rxd2 {[%clk 0:00:51]}  Bxd2 {[%clk 0:00:40]} 34. Nc7 {[%clk 0:00:52]}  Bxf4 {[%clk 0:00:34]} 35. Nxa6 {[%clk 0:00:52]}  Bxh2 {[%clk 0:00:34]} 36. Kf2 {[%clk 0:00:48]}  Bd6 {[%clk 0:00:33]} 37. Kf3 {[%clk 0:00:48]}  Ke7 {[%clk 0:00:33]} 38. Ke4 {[%clk 0:00:44]}  Kd7 {[%clk 0:00:33]} 39. Kd4 {[%clk 0:00:45]}  Kc6 {[%clk 0:00:33]} 40. Kc4 {[%clk 0:00:38]}  Kb6 {[%clk 0:00:32]} 41. Nb4 {[%clk 0:00:38]}  Bxb4 {[%clk 0:00:21]} 42. Kxb4 {[%clk 0:00:38]}  h5 {[%clk 0:00:19]} 43. a5+ {[%clk 0:00:35]}  Ka6 {[%clk 0:00:19]} 44. Kc5 {[%clk 0:00:35]}  g5 {[%clk 0:00:19]} 45. Kd4 {[%clk 0:00:35]}  h4 {[%clk 0:00:16]} 46. Ke5 {[%clk 0:00:34]}  g4 {[%clk 0:00:15]} 47. Kf4 {[%clk 0:00:35]}  h3 {[%clk 0:00:15]} 48. gxh3 {[%clk 0:00:35]}  gxh3 {[%clk 0:00:15]} 49. Kg3 {[%clk 0:00:35]}  Kxa5 {[%clk 0:00:15]} 50. Kxh3 {[%clk 0:00:36]}  Kb4 {[%clk 0:00:15]} 51. Kg4 {[%clk 0:00:36]}  Kc4 {[%clk 0:00:15]} 52. Kf4 {[%clk 0:00:36]}  Kd4 {[%clk 0:00:15]} 53. Kf3 {[%clk 0:00:37]}  Kd3 {[%clk 0:00:15]} 54. Kf4 {[%clk 0:00:37]}  Kd4 {[%clk 0:00:15]} 55. Kf3 {[%clk 0:00:37]}  e5 {[%clk 0:00:16]} 56. Ke2 {[%clk 0:00:32]}  Ke4 {[%clk 0:00:16]} 0-1


[Site "https://www.chess.com"]

[Event "Titled Tuesday Blitz June 6 Early 2023"]
[White "Spichkin, Alexander"]
[Black "Tokman, Ariel"]
[WhiteFideId "4144074"]
[BlackFideId "117420"]
[WhiteElo "1986"]
[BlackElo "2263"]
[Result "0-1"]
[Round "7"]
[TimeControl "180+2"]
[Date "2023.06.06"]
[WhiteClock "0:00:13"]
[BlackClock "0:00:35"]
[Board "104"]

1. f4 {[%clk 0:02:59]}  c5 {[%clk 0:02:57]} 2. Nf3 {[%clk 0:03:00]}  Nc6 {[%clk 0:02:58]} 3. e3 {[%clk 0:02:58]}  d6 {[%clk 0:02:59]} 4. Be2 {[%clk 0:02:58]}  g6 {[%clk 0:02:59]} 5. O-O {[%clk 0:02:58]}  Bg7 {[%clk 0:03:00]} 6. d3 {[%clk 0:02:58]}  Nf6 {[%clk 0:03:01]} 7. Nc3 {[%clk 0:02:59]}  O-O {[%clk 0:03:01]} 8. Qe1 {[%clk 0:02:59]}  Rb8 {[%clk 0:03:01]} 9. a4 {[%clk 0:02:59]}  a6 {[%clk 0:03:02]} 10. Qh4 {[%clk 0:02:59]}  b5 {[%clk 0:03:02]} 11. axb5 {[%clk 0:02:59]}  axb5 {[%clk 0:03:02]} 12. e4 {[%clk 0:02:59]}  b4 {[%clk 0:03:00]} 13. Nd1 {[%clk 0:02:59]}  c4 {[%clk 0:02:50]} 14. f5 {[%clk 0:02:57]}  b3 {[%clk 0:02:44]} 15. cxb3 {[%clk 0:02:54]}  cxd3 {[%clk 0:02:40]} 16. Bxd3 {[%clk 0:02:54]}  Rxb3 {[%clk 0:02:33]} 17. Bc2 {[%clk 0:02:51]}  Rb8 {[%clk 0:02:21]} 18. Bh6 {[%clk 0:02:50]}  Qb6+ {[%clk 0:02:09]} 19. Kh1 {[%clk 0:02:50]}  Qc5 {[%clk 0:02:10]} 20. Ba4 {[%clk 0:02:37]}  Ne5 {[%clk 0:01:51]} 21. Nxe5 {[%clk 0:02:29]}  Qxe5 {[%clk 0:01:47]} 22. Bf4 {[%clk 0:02:12]}  Qc5 {[%clk 0:01:41]} 23. fxg6 {[%clk 0:01:58]}  hxg6 {[%clk 0:01:38]} 24. Rc1 {[%clk 0:01:50]}  Qd4 {[%clk 0:01:34]} 25. Bc6 {[%clk 0:01:41]}  Bb7 {[%clk 0:01:20]} 26. Be3 {[%clk 0:01:16]}  Qe5 {[%clk 0:01:12]} 27. Bf4 {[%clk 0:01:16]}  Qh5 {[%clk 0:01:10]} 28. Qxh5 {[%clk 0:01:11]}  Nxh5 {[%clk 0:01:11]} 29. Bg5 {[%clk 0:01:08]}  Bf6 {[%clk 0:01:11]} 30. Bxf6 {[%clk 0:01:07]}  Nxf6 {[%clk 0:01:11]} 31. Nf2 {[%clk 0:01:01]}  Bxc6 {[%clk 0:01:09]} 32. Rxc6 {[%clk 0:01:02]}  Rxb2 {[%clk 0:01:09]} 33. h3 {[%clk 0:01:02]}  Re2 {[%clk 0:01:06]} 34. Rc7 {[%clk 0:00:57]}  Nxe4 {[%clk 0:01:04]} 35. Ng4 {[%clk 0:00:57]}  Ng3+ {[%clk 0:01:02]} 36. Kg1 {[%clk 0:00:57]}  Nxf1 {[%clk 0:01:02]} 37. Kxf1 {[%clk 0:00:58]}  Re4 {[%clk 0:00:59]} 38. Kf2 {[%clk 0:00:57]}  Kg7 {[%clk 0:01:00]} 39. Kf3 {[%clk 0:00:58]}  Re6 {[%clk 0:00:57]} 40. Ne3 {[%clk 0:00:56]}  Ra8 {[%clk 0:00:54]} 41. Nd5 {[%clk 0:00:56]}  Ra3+ {[%clk 0:00:54]} 42. Kf2 {[%clk 0:00:57]}  Ra2+ {[%clk 0:00:53]} 43. Kg3 {[%clk 0:00:54]}  Re5 {[%clk 0:00:52]} 44. Nxe7 {[%clk 0:00:52]}  Rg5+ {[%clk 0:00:52]} 45. Kf3 {[%clk 0:00:49]}  Rgxg2 {[%clk 0:00:51]} 46. Nc8 {[%clk 0:00:49]}  Rgc2 {[%clk 0:00:47]} 47. Rxc2 {[%clk 0:00:47]}  Rxc2 {[%clk 0:00:48]} 48. Nxd6 {[%clk 0:00:48]}  f5 {[%clk 0:00:46]} 49. Nb5 {[%clk 0:00:46]}  Rd2 {[%clk 0:00:45]} 50. Ke3 {[%clk 0:00:41]}  Rh2 {[%clk 0:00:44]} 51. Nd6 {[%clk 0:00:41]}  Rxh3+ {[%clk 0:00:45]} 52. Kf4 {[%clk 0:00:40]}  Ra3 {[%clk 0:00:46]} 53. Ne8+ {[%clk 0:00:38]}  Kh6 {[%clk 0:00:44]} 54. Nf6 {[%clk 0:00:36]}  Ra4+ {[%clk 0:00:44]} 55. Ke5 {[%clk 0:00:35]}  f4 {[%clk 0:00:40]} 56. Ng4+ {[%clk 0:00:32]}  Kg5 {[%clk 0:00:40]} 57. Nf2 {[%clk 0:00:23]}  f3 {[%clk 0:00:39]} 58. Nd3 {[%clk 0:00:20]}  Kg4 {[%clk 0:00:39]} 59. Kf6 {[%clk 0:00:17]}  Kg3 {[%clk 0:00:38]} 60. Kxg6 {[%clk 0:00:16]}  f2 {[%clk 0:00:39]} 61. Ne5 {[%clk 0:00:17]}  f1=Q {[%clk 0:00:37]} 62. Nf7 {[%clk 0:00:17]}  Ra6+ {[%clk 0:00:36]} 63. Kg7 {[%clk 0:00:17]}  Ra7 {[%clk 0:00:36]} 64. Kh6 {[%clk 0:00:16]}  Qxf7 {[%clk 0:00:35]} 65. Kg5 {[%clk 0:00:16]}  Ra5+ {[%clk 0:00:35]} 66. Kh6 {[%clk 0:00:15]}  Qf6+ {[%clk 0:00:36]} 67. Kh7 {[%clk 0:00:15]}  Ra7+ {[%clk 0:00:35]} 68. Kg8 {[%clk 0:00:13]}  Qd8# {[%clk 0:00:35]} 0-1


[Site "https://www.chess.com"]